bitfinex-derivatives/quotes_SOLF0:USTF0_20250130
["timestamp","ask_amount","ask_price","bid_price","bid_amount"]
[1738224125454,0.03198237,239.19,239.15,0.03025005]
[1738224128454,4.1812,239.18,239.15,0.03025005]
[1738224128651,0.03198237,239.19,239.15,0.03025005]
[1738224135153,4.21298237,239.19,239.15,0.03025005]
[1738224135359,0.03198237,239.19,239.15,0.03025005]
[1738224136060,4.1815,239.16,239.15,0.03025005]
[1738224147970,4.1815,239.16,239.15,5.005e-05]
[1738224148171,11.30578691,239.18,239.03,5.7669]
[1738224148470,11.30578691,239.13,239.03,1.5832]
[1738224148970,4.1836,239.04,239.03,1.5832]
[1738224154572,0.028263,239.06,239.01,1.60925326]
[1738224155573,4.1837,239.03,239.01,1.60925326]
[1738224156572,0.028263,239.06,239.01,1.60925326]
[1738224157070,7.25675519,239.14,239.05,7.25675519]
[1738224157268,4.1829,239.08,239.05,7.25675519]
[1738224158364,4.1829,239.08,239.04,0.02905923]
[1738224159274,0.0281979,239.09,239.05,7.25675519]
[1738224160671,4.1829,239.08,239.05,7.25675519]
[1738224161671,0.0281979,239.09,239.05,7.25675519]
[1738224161878,4.1819,239.14,239.07,7.25675519]
[1738224162071,4.1819,239.14,239.1,7.25675519]
[1738224162566,7.25675519,239.16,239.08,7.25675519]
[1738224162765,4.1822,239.12,239.08,7.25675519]
[1738224162970,4.1822,239.12,239.1,0.02891179]
[1738224163176,7.28802121,239.14,239.1,0.02891179]
[1738224163677,7.25675519,239.12,239.1,0.02891179]
[1738224164377,4.1823,239.11,239.1,0.02891179]
[1738224169878,4.1823,239.11,239.1,1.179e-05]
[1738224171882,4.183,239.08,238.97,4.1848]
[1738224172080,8.39516602,239.14,238.97,4.1848]
[1738224172081,7.25675519,239.03,238.97,5.7473]
[1738224172273,7.25675519,239.03,238.97,1.5625]
[1738224172478,4.1841,239.01,238.97,8.9107]
[1738224172778,4.1841,239.01,238.97,4.7259]
[1738224172982,4.21581517,239.01,238.97,4.75639217]
[1738224173583,0.03171517,239.01,238.97,4.75639217]
[1738224174681,4.1843,239.0,238.97,4.75639217]
[1738224175080,0.03171517,239.01,238.97,4.75639217]
[1738224175784,4.1846,238.98,238.97,4.75639217]
[1738224177387,0.03171517,239.01,238.97,4.75639217]
[1738224177583,0.03171517,239.01,238.98,7.25675519]
[1738224178286,4.21581517,239.01,238.98,7.25675519]
[1738224178590,4.21581517,239.01,238.97,4.75639217]
[1738224180791,0.03171517,239.01,238.97,3.20699217]
[1738224181295,0.03171517,239.01,238.97,0.03049217]
[1738224181296,4.1846,238.98,238.97,0.03049217]
[1738224181486,0.03171517,239.01,238.97,0.03049217]
[1738224181892,4.1846,238.99,238.97,0.03049217]
[1738224184197,4.1846,238.98,238.97,0.03049217]
[1738224186191,11.44135519,238.98,238.97,0.03049217]
[1738224189293,11.44135519,238.98,238.97,9.217e-05]
[1738224190493,0.03171517,239.01,238.97,9.217e-05]
[1738224190494,4.1845,238.99,238.97,9.217e-05]
[1738224190698,0.03171517,239.01,238.97,9.217e-05]
[1738224192097,4.1845,238.99,238.97,9.217e-05]
[1738224193702,0.03171517,239.01,238.97,9.217e-05]
[1738224193897,4.1846,238.98,238.97,9.217e-05]
[1738224197998,11.44135519,238.98,238.97,9.217e-05]
[1738224208906,0.03171517,239.01,238.97,9.217e-05]
[1738224209100,0.03171517,239.01,238.98,7.25675519]
[1738224212411,4.1843,239.0,238.97,9.217e-05]
[1738224212608,7.25675519,239.0,238.97,9.217e-05]
[1738224212913,7.25675519,238.98,238.97,9.217e-05]
[1738224214209,11.44135519,238.98,238.97,9.217e-05]
[1738224218614,7.25675519,238.98,238.97,9.217e-05]
[1738224218912,0.03171517,239.01,238.97,9.217e-05]
[1738224219917,4.1843,239.0,238.97,9.217e-05]
[1738224221520,0.03171517,239.01,238.97,9.217e-05]
[1738224221713,4.1846,238.98,238.97,9.217e-05]
[1738224226214,4.1844,238.99,238.97,9.217e-05]
[1738224229425,4.21591517,239.01,238.97,9.217e-05]
[1738224229622,0.03171517,239.01,238.98,7.25675519]
[1738224231527,0.03171517,239.01,238.97,9.217e-05]
[1738224231824,4.1843,239.0,238.97,9.217e-05]
[1738224232024,0.03171517,239.01,238.97,9.217e-05]
[1738224232226,4.1846,238.98,238.97,9.217e-05]
[1738224233126,11.44135519,238.98,238.97,9.217e-05]
[1738224233319,4.1846,238.98,238.97,9.217e-05]
[1738224244433,11.44135519,238.98,238.97,9.217e-05]
[1738224247940,4.1862,238.89,238.88,142.48834248]
[1738224248240,11.44295519,238.89,238.88,26.02016514]
[1738224249237,11.44295519,238.89,238.88,19.67826514]
[1738224249437,7.25675519,238.89,238.86,0.02813308]
[1738224249740,11.44325519,238.87,238.86,0.02813308]
[1738224251046,7.28323448,238.91,238.86,0.02813308]
[1738224251349,0.02647929,238.91,238.86,7.28488827]
[1738224252148,4.21237929,238.91,238.86,7.28488827]
[1738224252350,4.21237929,238.91,238.86,7.25675519]
[1738224252854,4.21237929,238.91,238.86,11.44345519]
[1738224253349,4.186,238.9,238.86,7.25675519]
[1738224253550,4.186,238.9,238.86,7.2878354]
[1738224254350,4.1862,238.89,238.86,7.2878354]
[1738224254747,7.28323448,238.91,238.86,0.03108021]
[1738224254957,4.1865,238.87,238.86,0.03108021]
[1738224255353,11.44325519,238.87,238.86,0.03108021]
[1738224264157,11.44325519,238.87,238.86,8.021e-05]
[1738224267253,4.1883,238.77,238.76,1.6429]
[1738224267657,7.25675519,238.78,238.73,173.11170546]
[1738224268061,4.1888,238.74,238.73,173.11170546]
[1738224268964,4.1892,238.72,238.71,0.0277448]
[1738224272265,11.44595519,238.72,238.71,0.0277448]
[1738224273059,11.44595519,238.72,238.71,4.48e-05]
[1738224274264,7.25675519,238.72,238.62,76.05053871]
[1738224274459,4.1901,238.67,238.62,76.05053871]
[1738224274662,7.25675519,238.7,238.62,76.05053871]
[1738224274965,4.1899,238.68,238.62,76.05053871]
[1738224275465,0.02695767,238.67,238.63,0.0291539]
[1738224275865,4.21695767,238.67,238.63,0.0291539]
[1738224276765,0.02695767,238.67,238.63,0.0291539]
[1738224276967,4.1902,238.66,238.63,0.0291539]
[1738224277266,0.02695767,238.67,238.63,0.0291539]
[1738224277657,4.1905,238.65,238.63,0.0291539]
[1738224278060,0.02695767,238.67,238.63,0.0291539]
[1738224278968,4.1906,238.65,238.63,0.0291539]
[1738224279467,4.1906,238.64,238.63,0.0291539]
[1738224279870,0.02695767,238.67,238.63,0.0291539]
[1738224280371,4.21715767,238.67,238.63,0.0291539]
[1738224281068,7.25675519,238.8,238.7,4.1895]
[1738224281374,7.25675519,238.82,238.75,7.25675519]
[1738224281670,7.25675519,238.82,238.67,3.302]
[1738224281671,7.25675519,238.86,238.79,7.25675519]
[1738224281972,4.1871,238.84,238.79,7.25675519]
[1738224282166,4.1871,238.84,238.8,0.03027832]
[1738224282371,0.02901781,238.85,238.8,0.03027832]
[1738224282663,0.02901781,238.85,238.83,7.25675519]
[1738224282869,7.25675519,238.92,238.83,7.25675519]
[1738224283168,7.25675519,238.92,238.85,7.25675519]
[1738224283564,7.25675519,238.94,238.88,7.25675519]
[1738224283768,7.25675519,238.94,238.86,7.25675519]
[1738224283967,7.25675519,238.9,238.89,0.02837644]
[1738224284562,0.02960478,238.93,238.89,0.02837644]
[1738224284770,4.1859,238.91,238.89,0.02837644]
[1738224285867,4.21520478,238.93,238.89,0.02837644]
[1738224286474,0.02960478,238.93,238.89,0.02837644]
[1738224286674,4.1859,238.91,238.89,0.02837644]
[1738224288473,0.02960478,238.93,238.89,0.02837644]
[1738224288474,4.186,238.9,238.89,0.02837644]
[1738224292776,4.186,238.9,238.89,7.644e-05]
[1738224293074,4.1874,238.82,238.81,1.6754]
[1738224294476,0.02860491,238.84,238.79,0.02865377]
[1738224294676,4.1878,238.8,238.79,0.02865377]
[1738224295579,4.1878,238.8,238.74,4.43900254]
[1738224296481,4.188,238.79,238.74,4.43900254]
[1738224296676,4.188,238.79,238.75,0.03103303]
[1738224296882,0.02975546,238.79,238.75,0.03103303]
[1738224297075,4.21775546,238.79,238.75,0.03103303]
[1738224298376,0.02975546,238.79,238.75,0.03103303]
[1738224301381,4.21765546,238.79,238.75,0.03103303]
[1738224301979,0.02975546,238.79,238.75,0.03103303]
[1738224302795,11.35411493,238.92,238.77,11.35411493]
[1738224302985,11.35411493,238.95,238.8,11.35411493]
[1738224303286,17.1826765,238.98,238.83,11.35411493]
[1738224303580,17.1826765,238.98,238.84,3.3521]
[1738224303886,11.35411493,238.95,238.84,3.3521]
[1738224304181,0.02678016,238.93,238.89,0.03018522]
[1738224304785,4.186,238.9,238.89,0.03018522]
[1738224308187,4.186,238.9,238.89,8.522e-05]
[1738224309583,4.1878,238.81,238.75,1.5595]
[1738224309789,11.35411493,238.86,238.75,1.5595]
[1738224310286,4.1878,238.8,238.75,5.748]
[1738224310486,11.35411493,238.86,238.75,5.748]
[1738224310679,0.02889518,238.83,238.78,0.02835912]
[1738224312188,4.1879,238.79,238.78,0.02835912]
[1738224313285,4.1877,238.81,238.78,0.02835912]
[1738224313583,0.02889518,238.83,238.78,0.02835912]
[1738224313987,4.1879,238.79,238.78,0.02835912]
[1738224316193,11.38301011,238.83,238.68,11.35411493]
[1738224316389,11.35411493,238.8,238.65,14.01411493]
[1738224316791,4.1893,238.71,238.65,11.35411493]
[1738224317391,4.1893,238.71,238.68,0.03124477]
[1738224317589,4.1897,238.69,238.68,0.03124477]
[1738224319294,4.1895,238.71,238.68,0.03124477]
[1738224319592,0.03167867,238.73,238.68,0.03124477]
[1738224319993,4.1897,238.69,238.68,0.03124477]
[1738224326892,0.03167867,238.73,238.68,0.03124477]
[1738224327193,4.1895,238.71,238.68,0.03124477]
[1738224327391,15.65760926,238.69,238.53,8.42733601]
[1738224327599,7.27810926,238.57,238.53,8.42733601]
[1738224327797,7.27810926,238.55,238.53,8.42733601]
[1738224327998,7.27810926,238.57,238.49,143.88069832]
[1738224328199,4.1923,238.54,238.49,143.88069832]
[1738224328403,4.1923,238.54,238.51,0.02902285]
[1738224329298,4.1925,238.53,238.51,0.02902285]
[1738224329707,7.30824639,238.55,238.51,0.02902285]
[1738224330208,4.1927,238.52,238.51,0.02902285]
[1738224330400,7.27810926,238.52,238.38,7.27810926]
[1738224330603,11.39923733,238.49,238.33,173.11170546]
[1738224330807,4.1939,238.45,238.35,4.1956]
[1738224331607,0.0289322,238.43,238.38,0.0280618]
[1738224332110,4.1949,238.4,238.38,0.0280618]
[1738224334107,4.197,238.28,238.2,143.88069832]
[1738224334307,11.39923733,238.33,238.21,4.8855]
[1738224334508,11.39923733,238.3,238.21,4.8855]
[1738224335306,0.02973318,238.28,238.23,0.03023276]
[1738224335512,11.39923733,238.36,238.23,11.39923733]
[1738224335708,11.39923733,238.45,238.29,11.39923733]
[1738224336109,0.02643318,238.39,238.29,11.39923733]
[1738224336404,0.02643318,238.39,238.35,0.02705648]
[1738224336603,11.39923733,238.48,238.35,0.02705648]
[1738224337111,11.39923733,238.48,238.34,3.1728]
[1738224337510,11.39923733,238.45,238.34,3.1728]
[1738224337713,4.1946,238.41,238.34,3.1728]
[1738224337908,0.02852113,238.43,238.34,3.16884834]
[1738224338207,4.22292113,238.43,238.34,3.16884834]
[1738224338406,0.02852113,238.43,238.34,3.16884834]
[1738224339009,4.22282113,238.43,238.34,3.16884834]
[1738224339311,4.22282113,238.43,238.36,0.0313862]
[1738224340110,0.02852113,238.43,238.36,4.2268862]
[1738224341113,0.02852113,238.43,238.37,4.1953]
[1738224341309,0.02852113,238.43,238.36,11.43062353]
[1738224341611,11.39923733,238.51,238.36,11.43062353]
[1738224341811,11.39923733,238.51,238.36,11.39923733]
[1738224342508,0.03084117,238.46,238.41,0.02699173]
[1738224343517,15.30408733,238.51,238.41,0.02699173]
[1738224344211,19.49698733,238.51,238.43,4.1943]
[1738224344612,0.03142433,238.49,238.43,4.1943]
[1738224345520,0.03142433,238.49,238.41,0.02699173]
[1738224346116,0.03142433,238.49,238.44,4.194]
[1738224346315,0.03142433,238.49,238.41,0.02699173]
[1738224346917,0.03142433,238.49,238.46,4.1937]
[1738224347915,3.90485,238.51,238.47,4.1935]
[1738224348421,3.90485,238.51,238.42,11.39923733]
[1738224348620,3.90485,238.51,238.47,4.1935]
[1738224349212,3.93659595,238.51,238.47,4.2199934]
[1738224349821,3.93659595,238.51,238.47,0.0264934]
[1738224350719,8.12959595,238.51,238.47,0.0264934]
[1738224351018,3.93659595,238.51,238.47,0.0264934]
[1738224351217,4.1931,238.5,238.47,0.0264934]
[1738224351526,3.93659595,238.51,238.47,0.0264934]
[1738224351720,1.34789595,238.51,238.49,4.193]
[1738224352916,1.34789595,238.51,238.48,1.6117]
[1738224354527,1.34789595,238.51,238.48,5.805]
[1738224357228,1.34789595,238.51,238.48,4.1933]
[1738224359729,1.34789595,238.51,238.46,1.591]
[1738224360430,1.34789595,238.51,238.48,4.1932]
[1738224360629,11.39923733,238.65,238.5,11.39923733]
[1738224361027,11.39923733,238.59,238.47,11.39923733]
[1738224361329,11.39923733,238.59,238.46,1.591]
[1738224361731,0.03082961,238.55,238.5,0.0287485]
[1738224363133,0.03082961,238.55,238.52,4.1926]
[1738224363631,0.03082961,238.55,238.5,0.0287485]
[1738224363821,0.03082961,238.55,238.51,4.1928]
[1738224364632,0.03082961,238.55,238.5,0.0287485]
[1738224364831,0.03082961,238.55,238.5,11.42798583]
[1738224365331,0.03082961,238.55,238.54,4.1923]
[1738224365925,4.1909,238.62,238.54,4.1923]
[1738224366531,4.1909,238.62,238.5,11.39923733]
[1738224366731,3.474,238.67,238.53,11.39923733]
[1738224366932,4.1906,238.64,238.53,11.39923733]
[1738224367130,0.02970493,238.62,238.58,0.02894966]
[1738224369135,4.1911,238.61,238.58,0.02894966]
[1738224370433,0.02970493,238.62,238.58,0.02894966]
[1738224373735,4.1911,238.61,238.58,0.02894966]
[1738224374036,0.02970493,238.62,238.58,0.02894966]
[1738224377344,0.02970493,238.62,238.58,4.22054966]
[1738224377843,0.02970493,238.62,238.58,0.02894966]
[1738224379039,0.02970493,238.62,238.59,4.1914]
[1738224379240,0.02970493,238.62,238.58,0.02894966]
[1738224379740,0.02970493,238.62,238.58,4.22054966]
[1738224380241,0.02970493,238.62,238.58,0.02894966]
[1738224381037,0.02970493,238.62,238.59,11.39923733]
[1738224382745,0.02970493,238.62,238.58,0.02656881]
[1738224384646,0.02970493,238.62,238.6,7.28065117]
[1738224388852,0.02970493,238.62,238.58,0.02656881]
[1738224389448,4.1914,238.6,238.58,0.02656881]
[1738224391552,4.1914,238.59,238.58,0.02656881]
[1738224393562,11.47205117,238.59,238.58,0.02656881]
[1738224399565,4.1914,238.59,238.58,0.02656881]
[1738224401868,4.1917,238.58,238.54,7.28065117]
[1738224402359,4.192,238.56,238.54,7.28065117]
[1738224403869,4.1915,238.59,238.54,7.28065117]
[1738224404068,4.1915,238.59,238.56,7.28065117]
[1738224404871,4.1916,238.58,238.56,7.28065117]
[1738224407168,0.02970493,238.62,238.56,7.28065117]
[1738224407373,4.22080493,238.62,238.58,7.28065117]
[1738224407570,0.02970493,238.62,238.58,7.28065117]
[1738224408673,4.1911,238.61,238.58,7.28065117]
[1738224409175,4.22070493,238.62,238.58,7.28065117]
[1738224413173,0.02970493,238.62,238.58,7.28065117]
[1738224415574,4.22060493,238.62,238.58,7.28065117]
[1738224415872,0.02970493,238.62,238.58,7.28065117]
[1738224418578,4.1912,238.61,238.58,7.28065117]
[1738224418879,7.3103561,238.62,238.54,7.28065117]
[1738224419175,4.1917,238.58,238.54,7.28065117]
[1738224419879,4.1915,238.59,238.54,7.28065117]
[1738224420174,7.28065117,238.56,238.53,0.03046086]
[1738224420680,0.03058518,238.57,238.54,7.28065117]
[1738224420980,4.1914,238.6,238.54,7.28065117]
[1738224421180,0.02723586,238.58,238.53,0.02976819]
[1738224421380,7.30788703,238.58,238.53,0.02976819]
[1738224421579,4.1923,238.54,238.53,0.02976819]
[1738224422481,11.47295117,238.54,238.53,0.02976819]
[1738224422682,4.1923,238.54,238.53,0.02976819]
[1738224423182,7.28065117,238.56,238.53,0.02976819]
[1738224423381,7.30788703,238.58,238.53,0.02976819]
[1738224423974,4.1918,238.57,238.53,0.02976819]
[1738224424179,7.30788703,238.58,238.53,0.02976819]
[1738224424679,4.192,238.56,238.51,7.28065117]
[1738224425675,4.192,238.56,238.51,7.31067238]
[1738224426077,7.30788703,238.58,238.51,0.03002121]
[1738224426283,7.28065117,238.53,238.51,0.03002121]
[1738224426782,7.28065117,238.55,238.51,0.03002121]
[1738224427080,7.28065117,238.57,238.51,0.03002121]
[1738224427283,4.1921,238.56,238.51,0.03002121]
[1738224427482,7.28065117,238.57,238.51,0.03002121]
[1738224427985,0.02723586,238.58,238.51,7.31067238]
[1738224428779,4.1921,238.56,238.51,7.31067238]
[1738224430785,4.21903586,238.58,238.51,7.31067238]
[1738224431184,0.02723586,238.58,238.51,7.31067238]
[1738224431385,4.1918,238.57,238.51,7.31067238]
[1738224431581,0.02723586,238.58,238.51,7.31067238]
[1738224431780,7.28065117,238.57,238.51,7.31067238]
[1738224431982,7.28065117,238.57,238.51,0.03002121]
[1738224433087,4.1924,238.54,238.51,0.03002121]
[1738224437192,0.02723586,238.58,238.53,7.28065117]
[1738224439693,0.02723586,238.58,238.51,7.31067238]
[1738224440188,4.1924,238.54,238.51,0.03002121]
[1738224442395,7.30788703,238.58,238.51,0.03002121]
[1738224442596,4.1922,238.55,238.51,0.03002121]
[1738224443294,0.02723586,238.58,238.53,7.28065117]
[1738224443498,0.02723586,238.58,238.51,0.03002121]
[1738224443499,0.02723586,238.58,238.55,7.28065117]
[1738224444992,0.02723586,238.58,238.55,11.47275117]
[1738224445200,0.02723586,238.58,238.56,7.28065117]
[1738224448196,0.02723586,238.58,238.56,11.47265117]
[1738224450101,0.02723586,238.58,238.56,7.28065117]
[1738224452202,45.09666011,238.71,238.56,7.28065117]
[1738224452402,45.09666011,238.71,238.65,7.28065117]
[1738224453105,4.1899,238.69,238.65,7.28065117]
[1738224453406,45.09666011,238.71,238.66,0.03152894]
[1738224453407,0.02797743,238.7,238.66,0.03152894]
[1738224454198,7.3086286,238.7,238.66,0.03152894]
[1738224454400,0.02797743,238.7,238.66,0.03152894]
[1738224455205,4.21747743,238.7,238.67,7.28065117]
[1738224455403,0.02797743,238.7,238.67,7.28065117]
[1738224455805,0.02797743,238.7,238.69,7.28065117]
[1738224465710,0.02797743,238.7,238.69,11.47035117]
[1738224466110,7.28065117,238.84,238.69,7.28065117]
[1738224466412,7.28065117,238.84,238.77,7.28065117]
[1738224467114,4.1879,238.79,238.75,7.28065117]
[1738224467310,4.1879,238.79,238.77,0.02703508]
[1738224467613,7.28065117,238.8,238.77,0.02703508]
[1738224467806,11.46875117,238.78,238.77,0.02703508]
[1738224468012,7.28065117,238.78,238.67,9.03825117]
[1738224468206,7.28065117,238.75,238.67,9.03825117]
[1738224469011,7.28065117,238.73,238.65,7.28065117]
[1738224469217,7.28065117,238.71,238.69,0.02691162]
[1738224469916,4.1895,238.7,238.69,0.02691162]
[1738224470115,7.31086868,238.73,238.69,0.02691162]
[1738224470417,0.03021751,238.73,238.69,0.02691162]
[1738224471422,7.31086868,238.73,238.69,0.02691162]
[1738224472010,0.03021751,238.73,238.69,7.30756279]
[1738224473118,4.21921751,238.73,238.69,7.30756279]
[1738224474720,0.03021751,238.73,238.69,7.30756279]
[1738224474921,7.31086868,238.73,238.69,0.02691162]
[1738224475623,4.1895,238.7,238.69,0.02691162]
[1738224479222,4.1893,238.72,238.69,7.30756279]
[1738224479425,0.03021751,238.73,238.71,7.28065117]
[1738224480223,4.21921751,238.73,238.71,7.28065117]
[1738224480525,0.03021751,238.73,238.69,7.30756279]
[1738224481627,7.31086868,238.73,238.69,0.02691162]
[1738224482221,4.1895,238.7,238.69,0.02691162]
[1738224485522,4.191,238.62,238.61,7.28065117]
[1738224485827,7.28065117,238.68,238.61,7.28065117]
[1738224486326,4.1906,238.64,238.61,7.28065117]
[1738224486628,4.22087985,238.65,238.61,7.28065117]
[1738224487025,0.03037985,238.65,238.61,7.28065117]
[1738224487721,0.03037985,238.65,238.63,7.28065117]
[1738224488923,4.22077985,238.65,238.63,7.28065117]
[1738224489928,0.03037985,238.65,238.63,7.28065117]
[1738224492025,9.12665117,238.76,238.63,7.28065117]
[1738224492234,1.846,238.76,238.7,7.28065117]
[1738224492624,9.12665117,238.76,238.7,7.28065117]
[1738224493122,4.1893,238.71,238.7,7.28065117]
[1738224494031,4.1897,238.69,238.68,7.30982381]
[1738224497528,4.1897,238.69,238.68,0.02917264]
[1738224501138,4.1893,238.72,238.68,7.30982381]
[1738224502238,4.1889,238.74,238.7,7.28065117]
[1738224502432,4.1889,238.74,238.72,7.28065117]
[1738224504340,0.03223991,238.75,238.72,7.28065117]
[1738224504531,7.97095388,238.87,238.74,7.28065117]
[1738224504842,4.1871,238.85,238.81,7.28065117]
[1738224505138,7.97095388,238.87,238.81,7.28065117]
[1738224505540,7.28065117,238.86,238.79,7.28065117]
[1738224505740,7.3103561,238.84,238.79,0.02915824]
[1738224505942,7.28065117,238.8,238.79,0.02915824]
[1738224506144,11.46845117,238.8,238.79,0.02915824]
[1738224509838,4.1894,238.71,238.69,8.97085117]
[1738224510044,7.28065117,238.75,238.69,7.28065117]
[1738224510243,7.28065117,238.77,238.69,7.28065117]
[1738224510943,4.1889,238.74,238.71,0.03065737]
[1738224511738,4.1891,238.73,238.71,0.03065737]
[1738224511945,0.03205158,238.75,238.71,0.03065737]
[1738224512343,4.1892,238.72,238.71,0.03065737]
[1738224513043,4.189,238.73,238.71,7.31130854]
[1738224516345,0.03205158,238.75,238.71,7.31130854]
[1738224516547,4.1892,238.72,238.71,7.31130854]
[1738224519244,4.189,238.73,238.71,7.31130854]
[1738224521949,0.03205158,238.75,238.71,7.31130854]
[1738224522145,0.03205158,238.75,238.73,7.28065117]
[1738224523748,4.1874,238.83,238.81,7.28065117]
[1738224523948,7.28065117,238.9,238.81,7.28065117]
[1738224524252,7.28065117,238.9,238.83,7.28065117]
[1738224524755,4.1869,238.85,238.84,0.02990361]
[1738224525652,4.1867,238.86,238.84,0.02990361]
[1738224525850,4.1867,238.86,238.85,7.28065117]
[1738224526152,0.02734958,238.89,238.85,7.28065117]
[1738224526650,0.02734958,238.89,238.87,7.28065117]
[1738224538162,1.7854,239.0,238.87,11.46715117]
[1738224538354,1.7854,239.0,238.94,7.28065117]
[1738224538556,4.1851,238.95,238.94,7.28065117]
[1738224538753,7.28065117,239.02,238.94,7.28065117]
[1738224539260,0.02899775,239.0,238.95,0.02854303]
[1738224539461,0.02899775,239.0,238.96,7.28065117]
[1738224539963,4.1848,238.97,238.96,7.28065117]
[1738224540164,0.02899775,239.0,238.95,0.02854303]
[1738224540465,4.185,238.96,238.95,0.02854303]
[1738224540766,11.46565117,238.96,238.95,0.02854303]
[1738224541265,4.185,238.96,238.95,0.02854303]
[1738224543761,11.46565117,238.96,238.95,0.02854303]
[1738224544669,11.46565117,238.96,238.86,7.28065117]
[1738224544670,4.1867,238.86,238.82,7.28065117]
[1738224545469,7.28065117,238.88,238.8,7.28065117]
[1738224545667,7.28065117,238.86,238.82,0.03041721]
[1738224545970,7.31000823,238.86,238.82,0.03041721]
[1738224546371,4.1872,238.83,238.82,0.03041721]
[1738224548775,4.1883,238.77,238.71,155.24346842]
[1738224549575,4.1883,238.77,238.71,11.3627701]
[1738224549775,11.3627701,238.83,238.68,94.2427701]
[1738224549967,0.02928393,238.76,238.72,0.03162501]
[1738224550467,0.02733074,238.76,238.72,0.03162501]
[1738224550975,4.189,238.73,238.72,0.03162501]
[1738224553173,1.7656,238.75,238.72,0.03162501]
[1738224553781,4.189,238.73,238.72,0.03162501]
[1738224576006,4.21593074,238.76,238.72,7.30820033]
[1738224576304,0.02733074,238.76,238.72,7.30820033]
[1738224576505,0.02733074,238.76,238.74,7.27657532]
[1738224579408,7.27657532,238.84,238.75,4.1886]
[1738224579707,4.1873,238.83,238.78,7.27657532]
[1738224580506,4.21401271,238.83,238.78,7.30598671]
[1738224581504,0.02671271,238.83,238.8,7.27657532]
[1738224581710,0.02671271,238.83,238.82,7.27657532]
[1738224587604,0.02671271,238.83,238.8,7.27657532]
[1738224587804,0.02671271,238.83,238.78,0.02941139]
[1738224588010,7.27657532,238.8,238.78,0.02941139]
[1738224588312,4.1879,238.79,238.78,0.02941139]
[1738224600620,4.1879,238.79,238.78,1.139e-05]
[1738224601019,7.27657532,238.8,238.63,7.27657532]
[1738224601322,7.27657532,238.71,238.63,7.27657532]
[1738224601823,4.1899,238.68,238.63,7.27657532]
[1738224602021,7.27657532,238.71,238.63,7.27657532]
[1738224602322,4.21967663,238.68,238.65,7.27657532]
[1738224602519,4.19,238.68,238.65,7.27657532]
[1738224602822,0.02783944,238.69,238.65,7.27657532]
[1738224603020,4.1901,238.67,238.65,7.27657532]
[1738224603921,4.1902,238.66,238.65,7.27657532]
[1738224605124,4.1902,238.66,238.64,0.03091479]
[1738224605515,0.02783944,238.69,238.64,0.03091479]
[1738224605716,4.1904,238.65,238.64,0.03091479]
[1738224607123,7.30441476,238.69,238.64,0.03091479]
[1738224607322,4.1902,238.66,238.64,0.03091479]
[1738224608725,4.1901,238.67,238.64,0.03091479]
[1738224609324,4.1904,238.65,238.64,0.03091479]
[1738224610430,0.02783944,238.69,238.64,0.03091479]
[1738224610626,0.02783944,238.69,238.67,7.27657532]
[1738224613633,0.02783944,238.69,238.64,7.30749011]
[1738224614634,4.1901,238.67,238.64,7.30749011]
[1738224615132,0.02783944,238.69,238.64,7.30749011]
[1738224615332,4.1902,238.66,238.64,7.30749011]
[1738224615932,4.1901,238.67,238.64,7.30749011]
[1738224616928,4.21763944,238.69,238.66,7.27657532]
[1738224617133,0.02783944,238.69,238.68,7.27657532]
[1738224618637,0.02783944,238.69,238.64,7.30749011]
[1738224619737,4.1904,238.66,238.64,7.30749011]
[1738224619932,0.02783944,238.69,238.64,0.03091479]
[1738224620637,4.1904,238.65,238.64,0.03091479]
[1738224620935,0.02783944,238.69,238.64,0.03091479]
[1738224621438,4.1903,238.66,238.64,0.03091479]
[1738224622638,0.02783944,238.69,238.64,7.30749011]
[1738224622838,0.02783944,238.69,238.66,7.27657532]
[1738224623539,4.21763944,238.69,238.66,7.27657532]
[1738224624238,4.1899,238.68,238.66,7.27657532]
[1738224625537,4.1899,238.68,238.64,0.03091479]
[1738224625538,4.1904,238.65,238.64,0.03091479]
[1738224631237,4.19,238.68,238.64,0.03091479]
[1738224631438,7.30441476,238.69,238.64,0.03091479]
[1738224631640,11.49431476,238.69,238.64,0.03091479]
[1738224632147,4.1899,238.68,238.64,0.03091479]
[1738224632547,4.1899,238.68,238.64,7.30749011]
[1738224632845,0.02783944,238.69,238.64,7.30749011]
[1738224633639,4.21753944,238.69,238.64,7.30749011]
[1738224633842,0.02783944,238.69,238.64,0.03091479]
[1738224634046,7.30441476,238.69,238.64,0.03091479]
[1738224634246,7.27657532,238.67,238.64,0.03091479]
[1738224634441,11.46697532,238.65,238.64,0.03091479]
[1738224636652,4.1904,238.65,238.64,0.03091479]
[1738224636951,15.56908574,238.65,238.64,0.03091479]
[1738224637143,15.56908574,238.65,238.64,1.479e-05]
[1738224638354,4.1904,238.65,238.64,1.479e-05]
[1738224658567,11.47209179,238.65,238.64,1.479e-05]